bitfinex-derivatives/quotes_ETHF0:USTF0_20251103
["timestamp","ask_amount","ask_price","bid_price","bid_amount"]
[1762213806988,0.2328,3598.7,3598.4,1.47430589]
[1762213807293,0.86731,3598.5,3598.4,0.00200248]
[1762213808490,0.73321,3597.8,3597.7,1.47230341]
[1762213808794,0.50046,3597.5,3597.4,0.2392]
[1762213809093,0.50046,3597.4,3597.3,40.8]
[1762213809683,0.00352055,3597.4,3597.3,41.30353614]
[1762213811496,0.00352055,3597.4,3596.7,1.2514]
[1762213811497,0.50053,3596.9,3596.7,1.47230341]
[1762213811692,0.00352055,3597.4,3596.5,1.60760341]
[1762213811891,0.00352055,3597.4,3597.3,0.2392]
[1762213812592,0.00352055,3597.4,3597.3,0.24280159]
[1762213813393,0.00352055,3597.4,3597.3,41.04280159]
[1762213813590,0.73678055,3597.4,3597.3,41.04280159]
[1762213814697,0.73678055,3597.4,3597.3,0.24280159]
[1762213816899,0.23632055,3597.4,3597.3,0.24280159]
[1762213817095,0.50398055,3597.4,3597.3,0.74328159]
[1762213817401,0.00352055,3597.4,3597.3,0.74328159]
[1762213817904,0.50398055,3597.4,3597.3,0.24280159]
[1762213818199,0.73598055,3597.4,3597.3,0.00360159]
[1762213820596,0.23552055,3597.4,3597.3,0.74148159]
[1762213820903,0.00352055,3597.4,3597.3,0.74148159]
[1762213821809,0.1342,3598.5,3598.0,0.1353]
[1762213822101,0.50034,3598.3,3598.2,0.2374]
[1762213822295,0.50037,3598.1,3598.0,40.9353]
[1762213822501,0.232,3598.2,3598.1,0.50037]
[1762213822695,0.5003,3598.6,3598.5,0.2374]
[1762213822894,0.50033,3598.4,3598.3,0.50033]
[1762213823094,0.73233,3598.4,3598.3,0.50033]
[1762213823298,0.232,3598.4,3598.3,0.50033]
[1762213823603,0.73233,3598.4,3598.3,0.50033]
[1762213823903,0.232,3598.4,3598.3,0.50033]
[1762213824103,0.00230174,3598.6,3598.5,0.87301]
[1762213824298,0.73460174,3598.6,3598.5,0.2374]
[1762213824498,0.1387,3598.5,3598.1,9.831]
[1762213824693,0.232,3598.4,3598.3,0.73774]
[1762213825201,0.232,3598.4,3598.3,0.2374]
[1762213825602,0.73235,3598.2,3598.1,9.831]
[1762213825900,0.1387,3598.5,3598.3,0.2374]
[1762213825901,0.50033,3598.4,3598.3,0.2374]
[1762213826700,0.73235,3598.2,3598.1,10.0684]
[1762213827799,0.73237,3598.1,3598.0,40.8]
[1762213828303,0.50039,3598.0,3597.9,0.2248]
[1762213828803,0.1387,3598.5,3598.0,0.115]
[1762213829002,0.50033,3598.4,3598.3,0.2248]
[1762213829901,0.73003,3598.4,3598.3,0.2248]
[1762213831097,0.00230174,3598.6,3598.4,0.2248]
[1762213831804,0.50260174,3598.6,3598.5,0.86911]
[1762213832101,0.00230174,3598.6,3598.5,0.3688]
[1762213832300,0.00230174,3598.6,3598.5,0.86911]
[1762213833003,0.50260174,3598.6,3598.5,0.86911]
[1762213834801,0.00230174,3598.6,3598.5,0.86911]
[1762213835201,0.50260174,3598.6,3598.5,0.86911]
[1762213835602,0.00230174,3598.6,3598.5,0.86911]
[1762213836301,0.50260174,3598.6,3598.5,0.86911]
[1762213836904,0.00230174,3598.6,3598.5,0.86911]
[1762213838709,0.50260174,3598.6,3598.5,0.86911]
[1762213839408,0.00230174,3598.6,3598.5,0.86911]
[1762213841006,0.50260174,3598.6,3598.5,0.3688]
[1762213841516,0.00230174,3598.6,3598.5,0.86911]
[1762213842009,0.50260174,3598.6,3598.5,0.86911]
[1762213842712,0.00230174,3598.6,3598.5,0.86911]
[1762213842907,0.50260174,3598.6,3598.5,0.86911]
[1762213843107,0.73003,3598.4,3598.3,1.47230341]
[1762213843411,0.50041,3597.8,3597.7,2.19752341]
[1762213843805,0.50041,3597.8,3597.7,42.99752341]
[1762213844005,0.50041,3597.8,3597.7,42.49710341]
[1762213844209,0.73011,3597.8,3597.7,0.2248]
[1762213844610,0.73012,3597.7,3597.6,1.47230341]
[1762213844913,0.73012,3597.7,3597.3,0.00360159]
[1762213844914,0.74166,3597.4,3597.3,1.475905]
[1762213845102,0.2412,3597.4,3597.3,0.00360159]
[1762213845302,0.50036,3598.2,3597.9,0.2358]
[1762213845501,0.1404,3598.5,3598.0,0.143]
[1762213845705,0.50036,3598.2,3598.1,0.73617]
[1762213845903,0.7416,3597.9,3597.8,1.47230341]
[1762213846111,0.74161,3597.8,3597.7,1.97272341]
[1762213846414,0.74161,3597.8,3597.7,2.20852341]
[1762213846910,0.50041,3597.8,3597.7,2.20852341]
[1762213847311,0.74161,3597.8,3597.7,1.70810341]
[1762213847607,0.2412,3597.8,3597.7,1.70810341]
[1762213847812,0.1424,3598.0,3597.9,0.2358]
[1762213848112,0.50035,3598.2,3598.1,0.2358]
[1762213849409,0.2412,3598.3,3598.2,0.73614]
[1762213849607,0.74154,3598.3,3598.2,0.73614]
[1762213851110,0.74154,3598.3,3598.2,0.2358]
[1762213851315,0.50034,3598.3,3598.2,0.73615]
[1762213851615,0.50034,3598.3,3598.2,0.2358]
[1762213852316,0.50034,3598.3,3598.2,0.73615]
[1762213852510,0.50260174,3598.6,3598.5,0.2358]
[1762213852907,0.00230174,3598.6,3598.3,0.2358]
[1762213853111,0.50034,3598.3,3598.2,42.77797855]
[1762213853309,0.50031,3598.5,3598.3,0.2358]
[1762213853514,0.50031,3598.5,3598.4,2.21374855]
[1762213853717,0.50260174,3598.6,3598.4,2.21374855]
[1762213853919,0.00230174,3598.6,3598.4,2.21374855]
[1762213854210,0.88391,3598.5,3598.4,1.47762855]
[1762213854411,0.88391,3598.5,3598.4,0.50033]
[1762213854611,0.88391,3598.5,3598.4,2.21375855]
[1762213854817,0.74151,3598.5,3598.4,2.21375855]
[1762213855007,0.88391,3598.5,3598.4,1.71342855]
[1762213857219,0.88391,3598.5,3598.3,1.47762855]
[1762213857220,0.74153,3598.4,3598.3,1.47762855]
[1762213857421,0.74153,3598.4,3598.3,1.71342855]
[1762213857718,0.74153,3598.4,3598.3,2.21376855]
[1762213858823,0.74153,3598.4,3598.3,1.71342855]
[1762213859023,0.74153,3598.4,3598.3,2.21376855]
[1762213859224,0.2412,3598.4,3598.3,2.21376855]
[1762213859621,0.64271,3598.5,3598.3,2.21376855]
[1762213859821,0.50033,3598.4,3598.3,2.21376855]
[1762213860124,0.74153,3598.4,3598.3,1.71342855]
[1762213860320,0.74153,3598.4,3598.3,2.21376855]
[1762213860626,0.74153,3598.4,3598.3,1.71342855]
[1762213862322,0.50033,3598.4,3598.3,2.21376855]
[1762213862521,0.50033,3598.4,3598.3,1.71342855]
[1762213862719,0.74153,3598.4,3598.3,1.30616686]
[1762213863027,0.50044,3597.6,3597.5,0.3547]
[1762213863322,0.50044,3597.6,3597.5,0.2358]
[1762213863524,0.74164,3597.6,3597.5,0.2358]
[1762213864423,0.50046,3597.4,3597.3,0.73988159]
[1762213864621,0.74166,3597.4,3597.3,0.23940159]
[1762213864825,0.74166,3597.4,3597.3,0.00360159]
[1762213865722,0.1424,3598.0,3597.5,0.143]
[1762213865920,0.50042,3597.8,3597.7,0.2358]
[1762213866120,0.74162,3597.8,3597.7,0.2358]
[1762213866818,0.50044,3597.6,3597.5,0.3788]
[1762213867023,0.50044,3597.6,3597.5,0.2358]
[1762213867218,0.1424,3598.0,3597.3,0.23940159]
[1762213867219,0.74166,3597.4,3597.3,0.23940159]
[1762213867726,0.50046,3597.4,3597.3,0.23940159]
[1762213867928,0.74166,3597.4,3597.3,0.00360159]
[1762213868525,0.1424,3598.0,3597.6,0.50043]
[1762213868725,0.50042,3597.7,3597.6,0.2358]
[1762213869328,0.2412,3597.6,3597.3,0.50408159]
[1762213869524,0.50046,3597.5,3597.3,0.50408159]
[1762213869728,0.74166,3597.4,3597.3,0.00360159]
[1762213871931,0.88419,3596.5,3596.4,0.5006]
[1762213872725,0.3836,3596.5,3596.4,0.7364]
[1762213872930,0.3836,3596.5,3596.4,0.73850181]
[1762213873430,0.88419,3596.5,3596.4,0.00210181]
[1762213874624,0.88419,3596.5,3596.4,1.81e-06]
[1762213878436,0.74179,3596.5,3596.4,0.23540181]
[1762213878735,0.2412,3596.5,3596.4,0.73600181]
[1762213879326,0.64209,3596.5,3596.4,1.81e-06]
[1762213879926,0.2386,3596.5,3596.4,0.73600181]
[1762213880129,0.50056,3596.7,3596.5,0.50058]
[1762213880334,9.9694,3597.0,3596.6,0.73598]
[1762213880730,0.50056,3596.7,3596.6,0.73598]
[1762213880931,0.64209,3596.5,3596.4,1.81e-06]
[1762213881132,0.50058,3596.6,3596.4,0.23540181]
[1762213881330,0.50058,3596.6,3596.5,0.2354]
[1762213881534,0.73918,3596.6,3596.5,0.2354]
[1762213882135,0.73918,3596.6,3596.5,0.73599]
[1762213882335,1.25111,3597.6,3596.9,0.2354]
[1762213882541,0.50051,3597.1,3597.0,0.73592]
[1762213882734,0.50049,3597.2,3597.1,0.7359]
[1762213883132,0.50049,3597.2,3597.1,0.2354]
[1762213883333,0.73909,3597.2,3597.1,0.73591]
[1762213883633,0.73909,3597.2,3596.6,40.8]
[1762213883937,0.50051,3597.1,3597.0,0.73592]
[1762213884934,0.36152218,3598.5,3597.9,0.2354]
[1762213885136,0.50033,3598.4,3598.0,0.50038]
[1762213885438,0.36152218,3598.5,3598.0,0.58337]
[1762213885637,0.50033,3598.4,3598.1,0.50036]
[1762213885826,0.50035,3598.3,3598.1,0.50036]
[1762213886029,0.1415,3598.5,3598.2,0.2354]
[1762213886233,0.1415,3598.5,3598.2,0.73575]
[1762213887239,0.1415,3598.5,3598.3,0.2354]
[1762213887436,0.73896,3598.2,3598.1,0.2354]
[1762213887636,0.1415,3598.5,3597.9,0.2354]
[1762213887836,0.1415,3598.5,3598.1,0.50037]
[1762213887837,0.50034,3598.3,3598.1,0.50037]
[1762213889030,0.1415,3598.5,3598.2,0.50035]
[1762213889442,0.1415,3598.5,3598.0,0.0829]
[1762213889443,0.50261174,3598.6,3598.4,0.234]
[1762213889938,0.2251,3598.5,3598.4,0.234]
[1762213890140,0.3721,3598.5,3598.4,0.234]
[1762213890637,0.2251,3597.7,3597.6,40.8]
[1762213890832,0.147,3598.0,3596.9,1.25133]
[1762213890833,0.2251,3597.4,3596.9,1.47177852]
[1762213891038,0.147,3597.5,3597.0,0.50052]
[1762213891039,0.2251,3597.1,3597.0,0.50052]
[1762213891340,1.39798,3598.0,3597.4,0.73446]
[1762213891341,0.50042,3597.7,3597.4,0.73446]
[1762213892041,0.147,3598.0,3597.5,0.50044]
[1762213892238,0.5004,3597.9,3597.8,0.234]
[1762213892438,0.50042,3597.7,3597.6,0.50042]
[1762213892645,0.50042,3597.7,3597.6,0.73442]
[1762213892845,0.72552,3597.7,3597.6,0.73442]
[1762213893342,0.72554,3597.6,3597.5,0.50045]
[1762213893643,0.2251,3597.1,3597.0,0.50052]
[1762213894044,0.2251,3597.1,3597.0,0.73452]
[1762213894442,0.72561,3597.1,3597.0,0.234]
[1762213894947,0.72561,3597.1,3597.0,0.73452]
[1762213895247,0.2251,3597.1,3597.0,0.73452]
[1762213895647,0.2251,3597.1,3597.0,0.234]
[1762213895842,0.2251,3597.1,3597.0,0.73452]
[1762213896241,0.50048,3597.3,3597.1,0.5005]
[1762213896443,0.72559,3597.2,3597.1,0.5005]
[1762213896743,0.3721,3597.5,3597.4,0.50046]
[1762213897046,0.50260174,3598.6,3598.5,0.3807]
[1762213897244,0.00230174,3598.6,3598.5,0.88101]
[1762213897846,0.00230174,3598.6,3598.5,0.3807]
[1762213898146,0.00230174,3598.6,3598.5,0.88101]
[1762213900654,0.50026,3598.9,3598.8,0.234]
[1762213901659,0.50320884,3598.9,3598.8,0.234]
[1762213902056,0.5003,3598.7,3598.6,0.234]
[1762213902360,0.5003,3598.6,3598.4,0.50032]
[1762213902561,0.5003,3598.6,3598.5,0.234]
[1762213902960,0.5003,3598.6,3598.5,0.73431]
[1762213903155,0.5003,3598.6,3598.5,0.234]
[1762213903555,0.50320884,3598.9,3598.8,0.234]
[1762213906062,0.50028,3598.7,3598.6,0.7329]
[1762213906261,0.72388,3598.7,3598.6,0.2326]
[1762213906559,0.50032,3598.5,3598.4,0.2326]
[1762213907164,0.50034,3598.3,3598.2,0.50034]
[1762213907360,0.2236,3598.2,3597.8,1.47177852]
[1762213907561,0.50034,3598.4,3597.9,40.8]
[1762213907757,0.1431,3598.5,3598.2,0.73295]
[1762213907963,0.50028,3598.8,3598.7,0.2326]
[1762213908162,0.50320884,3598.9,3598.8,0.2326]
[1762213911472,0.5003,3598.6,3598.5,0.3705]
[1762213911670,0.5003,3598.6,3598.5,0.2326]
[1762213912068,0.5003,3598.6,3598.5,0.73291]
[1762213912464,0.5003,3598.6,3598.5,0.2326]
[1762213912665,0.72392,3598.5,3598.4,0.50032]
[1762213912865,0.00294884,3598.9,3598.6,0.7329]
[1762213913064,0.50028,3598.7,3598.6,0.7329]
[1762213913365,0.50028,3598.7,3598.6,0.2326]
[1762213913761,0.50028,3598.7,3598.6,0.7329]
[1762213914271,0.50320884,3598.9,3598.8,0.73287]
[1762213914863,0.50320884,3598.9,3598.8,0.2326]
[1762213916775,0.72680884,3598.9,3598.8,0.2326]
[1762213917375,0.50320884,3598.9,3598.8,0.2326]
[1762213919574,0.50320884,3598.9,3598.8,0.73287]
[1762213920074,0.50320884,3598.9,3598.8,0.2326]
[1762213920665,0.00294884,3598.9,3598.8,0.73287]
[1762213921773,0.00294884,3598.9,3598.8,41.53287]
[1762213923272,1.13775919,3600.5,3599.9,0.2326]
[1762213923479,1.24982,3601.3,3600.6,0.2326]
[1762213923668,0.1431,3601.5,3600.7,0.2326]
[1762213923866,0.49999,3600.8,3600.7,0.2326]
[1762213924165,0.72359,3600.8,3600.7,0.2326]
[1762213924369,0.7259717,3600.8,3600.7,0.23590181]
[1762213925179,0.0023817,3600.8,3600.7,0.23590181]
[1762213925366,0.7259717,3600.8,3600.7,0.23590181]
[1762213925771,0.0023817,3600.8,3600.7,0.73591181]
[1762213927173,0.0023817,3600.8,3600.7,41.53591181]
[1762213928973,0.2236,3601.6,3601.0,0.1379]
[1762213929284,0.49994,3601.2,3601.1,0.2326]
[1762213929481,0.49992,3601.4,3601.1,0.2326]
[1762213929673,0.49992,3601.4,3601.0,0.1379]
[1762213929674,0.1431,3601.5,3601.0,0.1379]
[1762213929871,0.00302135,3601.5,3601.4,0.2326]
[1762213931178,0.50291135,3601.5,3601.4,0.2326]
[1762213931380,0.00302135,3601.5,3601.4,0.73251]
[1762213932173,0.72651135,3601.5,3601.4,0.2326]
[1762213932884,0.50291135,3601.5,3601.4,0.2326]
[1762213933089,0.00302135,3601.5,3601.4,0.73251]
[1762213933886,0.00302135,3601.5,3601.4,0.2326]
[1762213934077,0.50291135,3601.5,3601.4,0.2326]
[1762213934385,0.00302135,3601.5,3601.4,0.73251]
[1762213934880,0.50291135,3601.5,3601.4,0.2326]
[1762213935082,0.00302135,3601.5,3601.4,0.2326]
[1762213935282,0.49978,3602.4,3602.3,0.2378]
[1762213935987,0.73428,3602.4,3602.3,0.2378]
[1762213936285,0.73704688,3602.4,3602.3,0.2378]
[1762213936584,0.50253688,3602.4,3602.3,0.73758]
[1762213936787,0.00276688,3602.4,3602.3,0.73758]
[1762213936983,0.50253688,3602.4,3602.3,0.2378]
[1762213937285,0.00276688,3602.4,3602.3,0.73758]
[1762213937578,0.00276688,3602.4,3602.3,41.53758]
[1762213938084,0.00276688,3602.4,3602.3,41.0378]
[1762213938582,0.00276688,3602.4,3602.3,41.53758]
[1762213938986,0.50253688,3602.4,3602.3,41.0378]
[1762213939187,0.00276688,3602.4,3602.3,41.53758]
[1762213939990,0.50253688,3602.4,3602.3,41.0378]
[1762213940282,0.1349,3602.0,3601.8,0.49984]
[1762213940483,0.1349,3602.0,3601.8,0.2378]
[1762213940484,0.49984,3601.9,3601.8,0.2378]
[1762213940683,0.49984,3601.9,3601.8,41.0378]
[1762213942983,0.49984,3601.9,3601.8,41.53765]
[1762213943593,0.49984,3601.9,3601.8,41.0378]
[1762213944188,0.73438,3601.6,3601.5,0.2378]
[1762213944385,0.4999,3601.5,3601.3,0.49992]
[1762213944686,0.1349,3602.0,3601.1,4.061]
[1762213944687,0.1349,3602.0,3601.4,41.53771]
[1762213944888,0.1349,3602.0,3601.9,0.2378]
[1762213944889,0.49983,3602.0,3601.9,0.2378]
[1762213945089,0.00276688,3602.4,3601.6,1.24969]
[1762213945289,0.49982,3602.1,3601.9,0.49983]
[1762213945589,0.49978,3602.3,3602.2,0.7376]
[1762213947190,0.49981,3602.1,3602.0,0.2378]
[1762213947492,0.49988,3601.6,3601.5,0.2378]
[1762213947689,0.49988,3601.6,3601.5,0.73769]
[1762213947891,0.49988,3601.6,3601.5,0.3516]
[1762213948194,0.49988,3601.6,3601.5,0.85149]
[1762213948987,0.49987,3601.7,3601.6,0.49988]
[1762213949188,0.49987,3601.7,3601.6,0.73078]
[1762213949591,0.49986,3601.8,3601.7,0.73076]
[1762213951190,0.1349,3602.0,3601.5,0.1138]
[1762213951191,1.38448,3602.0,3601.5,0.2309]
[1762213951491,0.49995,3601.1,3600.7,1.48072264]
[1762213951683,0.49995,3601.1,3601.0,0.73086]
[1762213951889,0.49995,3601.1,3601.0,41.53086]
[1762213952090,0.237,3601.2,3601.1,0.49994]
[1762213952293,0.237,3601.2,3601.1,0.73084]
[1762213952588,0.49993,3601.3,3601.2,0.49994]
[1762213952793,0.73695,3601.1,3601.0,40.8]
[1762213953195,0.49983,3602.0,3601.9,0.2309]
[1762213953385,1.15448691,3602.0,3601.9,0.2309]
[1762213954099,0.1349,3602.5,3602.0,0.49981]
[1762213954292,0.49981,3602.1,3602.0,0.73071]
[1762213954595,1.01093839,3602.1,3602.0,0.73071]
[1762213954796,1.01093839,3602.1,3602.0,0.2309]
[1762213955001,0.73683,3602.0,3601.9,0.49984]
[1762213955192,1.01120647,3602.0,3601.9,0.49984]
[1762213955389,0.3805,3601.5,3601.4,0.49991]
[1762213955589,0.237,3601.5,3601.4,0.73081]
[1762213955788,0.237,3601.5,3601.1,1.47742083]
[1762213955789,0.73689,3601.6,3601.5,0.49989]
[1762213956092,0.73688,3601.6,3601.5,0.73079]
[1762213956288,0.49992,3601.4,3601.3,0.2309]
[1762213956491,0.237,3601.4,3601.3,0.73082]
[1762213956998,0.73691,3601.4,3601.3,0.2309]
[1762213957195,0.73691,3601.4,3601.3,0.73082]
[1762213958101,0.49994,3601.2,3601.1,1.47742083]
[1762213958298,0.73695,3601.1,3601.0,40.8]
[1762213958705,0.237,3601.1,3601.0,41.29996]
[1762213958999,0.73695,3601.1,3601.0,41.29996]
[1762213959398,0.73695,3601.1,3601.0,0.49996]
[1762213960398,0.88048,3601.0,3600.9,0.49996]
[1762213960596,0.3805,3601.0,3600.9,0.49996]
[1762213960797,0.88046,3601.0,3600.9,0.73086]
[1762213961496,0.237,3601.0,3600.9,0.73086]
[1762213961703,0.49992,3601.3,3601.2,0.73084]
[1762213961997,0.49996,3601.1,3601.0,0.2309]
[1762213962298,0.73696,3601.1,3601.0,0.2309]
[1762213962706,0.73696,3601.1,3601.0,0.73086]
[1762213964305,0.73696,3601.1,3601.0,0.2309]
[1762213966100,0.74458,3600.9,3600.8,40.8]
[1762213966298,0.74459,3600.8,3600.7,0.00330181]
[1762213966500,0.74472,3599.9,3599.8,1.47742083]
[1762213966801,1.25021,3600.2,3599.7,0.50014]
[1762213966802,0.74473,3599.8,3599.7,0.50014]
[1762213967002,0.74473,3599.8,3599.6,40.8]
[1762213967003,0.50014,3599.7,3599.6,41.30016]
[1762213967592,0.50014,3599.7,3599.6,41.30259976]
[1762213967593,0.00260967,3599.7,3599.6,41.30259976]
[1762213969699,0.00260967,3599.7,3599.6,51.11059976]
[1762213973008,0.00260967,3599.7,3599.6,52.58802059]
[1762213976203,0.50001,3600.7,3600.6,0.2292]
[1762213976509,0.2446,3600.3,3600.2,0.50007]
[1762213976803,0.74467,3600.3,3600.0,9.9287]
[1762213977206,0.50008,3600.2,3600.0,9.9287]
[1762213977508,0.89091,3600.0,3599.9,0.2292]
[1762213977703,0.2446,3599.9,3599.7,11.28018052]
[1762213977903,0.74472,3599.9,3599.8,0.50013]
[1762213978105,0.2446,3599.9,3599.8,0.72933]
[1762213979005,0.1462,3600.0,3599.9,0.72932]
[1762213979711,0.2446,3600.1,3600.0,0.50009]
[1762213980905,0.2446,3600.1,3599.9,0.50012]
[1762213981210,0.2446,3599.9,3599.7,9.809]
[1762213981413,0.2446,3599.9,3599.8,0.2292]
[1762213981602,0.1462,3600.0,3599.6,40.80243976]
[1762213981801,0.74475,3599.7,3599.6,0.00243976]
[1762213982007,0.2446,3598.6,3598.4,1.47118052]
[1762213982304,0.2446,3598.6,3598.5,41.30031]
[1762213982708,0.50026,3598.9,3598.5,40.8]
[1762213982907,0.50026,3598.9,3598.5,41.30326244]
[1762213983107,0.50026,3598.9,3598.6,0.5003]
[1762213983308,0.2446,3598.6,3598.5,40.80296244]
[1762213983709,0.2446,3598.6,3598.5,41.30327244]
[1762213984013,0.61685,3599.0,3598.6,0.50028]
[1762213984806,0.5002,3599.4,3598.9,0.2292]
[1762213985010,0.50022,3599.2,3599.1,0.2292]
[1762213985213,1.25038,3599.7,3598.5,50.72706244]
[1762213985214,0.2446,3599.1,3598.5,50.72706244]
[1762213985407,0.2446,3599.1,3598.6,0.5003]
[1762213985616,0.1462,3599.0,3598.5,50.72706244]
[1762213986414,0.1462,3599.0,3598.7,0.50027]
[1762213986914,0.1462,3599.0,3598.5,50.72706244]
[1762213987116,0.1462,3599.0,3598.8,0.50027]
[1762213987822,0.50021,3599.3,3599.0,0.50024]
[1762213988314,0.50022,3599.2,3599.0,0.50024]
[1762213989116,0.5002,3599.3,3599.0,0.50024]
[1762213989317,0.5002,3599.3,3599.1,0.50023]
[1762213989514,0.61678,3599.5,3599.2,0.7294]
[1762213989711,0.89097,3599.5,3599.2,0.50021]
[1762213989910,0.2446,3599.3,3599.0,0.1382]
[1762213990114,0.2446,3598.7,3598.5,40.91806244]
[1762213990412,0.2446,3598.7,3598.6,0.7295]
[1762213990717,0.1462,3599.5,3598.5,40.91806244]
[1762213990718,0.50019,3599.4,3599.1,0.50022]
[1762213991412,0.50019,3599.4,3599.2,0.50021]
[1762213991612,0.64637,3599.5,3599.4,0.2292]
[1762213992311,0.89097,3599.5,3599.4,0.2292]
[1762213992717,0.50013,3599.8,3599.6,0.50015]
[1762213993320,0.50015,3599.7,3599.6,0.72935]
[1762213993620,0.74475,3599.7,3599.0,0.1382]
[1762213993816,0.50022,3599.2,3598.7,1.47118052]
[1762213994115,0.1462,3599.5,3598.5,42.38924296]
[1762213994116,1.2505,3599.4,3598.5,42.38924296]
[1762213994321,0.2446,3598.7,3598.6,0.5003]
[1762213994619,0.2446,3598.7,3598.6,0.7295]
[1762213994815,0.64644,3599.0,3598.5,40.91806244]
[1762213995011,0.50027,3598.8,3598.6,0.50029]
[1762213995518,0.50027,3598.8,3598.5,40.91806244]
[1762213995718,0.50027,3598.8,3598.6,0.50029]
[1762213995921,0.2384,3598.8,3598.7,0.50028]
[1762213996115,0.2384,3598.8,3598.7,0.73198]
[1762213996523,0.88484,3599.0,3598.9,0.50026]
[1762213997021,0.73866,3598.9,3598.8,0.2317]
[1762213997215,0.2384,3598.7,3598.6,0.73199]
[1762213997415,0.2384,3598.9,3598.8,0.50026]
[1762213997917,0.73866,3598.9,3598.8,0.50026]
[1762213998120,0.2384,3598.6,3598.5,41.30327244]
[1762213998822,0.2384,3598.9,3598.8,0.50027]
[1762213999026,0.5002,3599.3,3599.0,0.50024]
[1762213999224,0.5002,3599.3,3599.1,0.50023]
[1762213999422,0.1462,3599.5,3598.7,1.25069]
[1762213999626,0.50019,3599.4,3599.3,0.73189]
[1762213999826,0.73859,3599.4,3599.3,0.73189]
[1762214000122,0.73859,3599.4,3599.3,0.2317]
[1762214000320,0.7386,3599.3,3599.2,0.50022]
[1762214000629,0.7386,3599.3,3599.2,0.73192]
[1762214000919,0.50016,3599.6,3599.5,0.73187]
[1762214001123,0.73856,3599.6,3599.5,0.50017]
[1762214001319,0.73856,3599.6,3599.1,1.25058]
[1762214001320,0.50019,3599.4,3599.2,0.5002]
[1762214001514,0.1359,3599.5,3599.4,0.73189]
[1762214001720,0.1462,3600.0,3599.6,0.73185]
[1762214002228,0.50014,3599.8,3599.6,0.73185]
[1762214003126,0.73855,3599.7,3599.6,0.2317]
[1762214003327,0.50017,3599.5,3599.4,0.50019]
[1762214003629,0.50017,3599.5,3599.4,0.73189]
[1762214003925,0.2384,3599.8,3599.7,0.50014]
[1762214004129,0.50015,3599.7,3599.6,0.2317]
[1762214004327,0.73855,3599.7,3599.6,0.2317]
[1762214004828,0.50012,3599.9,3599.7,0.50014]
[1762214005128,0.50013,3599.8,3599.7,0.73184]
[1762214006831,0.50008,3600.2,3600.1,0.2317]
[1762214007227,0.73848,3600.2,3600.1,0.2317]
[1762214007730,0.5001,3600.1,3599.9,0.50011]
[1762214008030,0.50009,3600.1,3599.9,0.50011]
[1762214008329,0.50009,3600.1,3600.0,0.2317]
[1762214008725,0.50009,3600.1,3600.0,0.7318]
[1762214008925,0.50008,3600.2,3600.1,0.74599]
[1762214009530,0.5001,3600.0,3599.9,0.74601]
[1762214009730,0.725,3600.0,3599.9,0.2459]
[1762214010133,0.2249,3600.0,3599.9,0.74602]
[1762214010833,0.87041,3600.0,3599.9,0.2459]
[1762214011133,0.72502,3599.9,3599.8,40.8]
[1762214011529,0.2249,3599.9,3599.8,41.30013]
[1762214011834,0.50009,3600.2,3599.9,0.2459]
[1762214012035,0.50009,3600.2,3600.0,0.50011]
[1762214012632,0.50008,3600.2,3600.1,0.74598]
[1762214014437,0.50287088,3600.3,3600.2,0.74598]
[1762214014624,0.50287088,3600.3,3600.2,0.2459]
[1762214014933,0.87041,3600.0,3599.9,0.50012]
[1762214015329,0.87041,3600.0,3599.9,0.74602]
[1762214015530,0.72501,3600.0,3599.9,0.74602]
[1762214015836,0.50009,3600.1,3600.0,0.74599]
[1762214016536,0.72498,3600.2,3600.1,0.74599]
[1762214017140,0.72498,3600.2,3600.1,0.2459]
[1762214017331,0.72498,3600.2,3600.1,0.74599]
[1762214017732,0.50008,3600.2,3600.1,0.74599]
[1762214018536,0.00280088,3600.3,3600.2,0.74598]
[1762214018843,0.49995,3601.1,3601.0,0.85216]
[1762214019539,9.807,3601.7,3601.3,0.74583]
[1762214019839,10.3095606,3601.7,3601.3,0.00237852]
[1762214020038,10.3095606,3601.7,3601.6,0.49988]
[1762214020440,10.3095606,3601.7,3601.4,0.49991]
[1762214020743,10.3095606,3601.7,3601.3,0.50229852]
[1762214020744,0.49991,3601.5,3601.3,0.50229852]
[1762214020940,0.49991,3601.4,3601.3,0.74819852]
[1762214021144,0.49991,3601.4,3601.3,0.24827852]
[1762214021443,0.72481,3601.4,3601.3,0.00237852]
[1762214026451,7.66641,3601.4,3601.3,0.00237852]
[1762214026650,0.72481,3601.4,3601.3,0.00237852]
[1762214035450,0.237,3600.3,3600.2,1.47118052]
[1762214035658,0.73708,3600.3,3600.2,0.50008]
[1762214035857,0.73708,3600.3,3600.2,41.53378]
[1762214036459,0.50008,3600.3,3600.2,41.53602724]
[1762214037459,0.50008,3600.3,3600.2,0.73602724]
[1762214037959,0.73708,3600.3,3600.2,0.00224724]
[1762214038958,0.237,3600.3,3600.2,0.73602724]
[1762214039157,0.73706,3600.3,3600.2,0.73602724]
[1762214040258,0.73706,3600.3,3600.2,0.00224724]
[1762214040657,0.73706,3600.3,3600.2,0.50232724]
[1762214041867,0.50003,3600.5,3600.4,0.2337]
[1762214042064,0.88033,3600.5,3600.4,0.2337]
[1762214042259,0.88033,3600.5,3600.3,0.50006]
[1762214042260,0.50005,3600.4,3600.3,0.50006]
[1762214042463,0.50002,3600.6,3600.5,0.73374]
[1762214042865,0.73702,3600.6,3600.5,0.2337]
[1762214043261,0.73702,3600.6,3600.5,0.73374]
[1762214043560,0.50001,3600.7,3600.6,0.73372]
[1762214043759,0.50001,3600.7,3600.6,0.2337]
[1762214044062,0.73705,3600.4,3600.3,0.2337]
[1762214044367,0.50004,3600.5,3600.4,0.73375]